{"text_format":"1","workbook":"xlsx","n_sheets":3,"sheets":["Список","Алмакаев В.И.","Нормы"],"not_rendered":{"charts":0,"images":2,"macros":1,"external_links":0,"defined_names":0,"comments":1,"pivot_tables":0},"unopened":[],"bounds":{"document_bytes":16777216,"sheet_cells":100000,"rows_first":2000,"rows_last":500,"rows_between":2000,"halvings":0,"cell_chars":16384,"cell_head_chars":4096},"cells_cut":0,"cells_raw":0,"read":"whole","date_system":"1900"}

{"sheet":"Список","index":0,"n_rows":45,"n_cols":2,"rows_kept":45,"cut":false,"hidden":false,"merged":[]}
[]
[null,"ФИО"]
[null,"Список"]
[null,"Алмакаев В.И."]
[null,"Нормы"]
[null,"Шаблон"]
[]
[]
[]
[]
[]
[]
[]
[]
[]
[]
[null,{"$f":"IF(ПРОВЕРКА,HYPERLINK(ЛИСТ.СПИСОК&\"'!A1\",ЛИСТ.ИМЯ),\"\")","v":{"$error":"#NAME?"}}]
[null,{"$error":"#NAME?"}]
[null,{"$error":"#NAME?"}]
[null,{"$error":"#NAME?"}]
[null,{"$error":"#NAME?"}]
[null,{"$error":"#NAME?"}]
[null,{"$error":"#NAME?"}]
[null,{"$error":"#NAME?"}]
[null,{"$error":"#NAME?"}]
[null,{"$error":"#NAME?"}]
[null,{"$error":"#NAME?"}]
[null,{"$error":"#NAME?"}]
[null,{"$error":"#NAME?"}]
[null,{"$error":"#NAME?"}]
[null,{"$error":"#NAME?"}]
[null,{"$error":"#NAME?"}]
[null,{"$error":"#NAME?"}]
[null,{"$error":"#NAME?"}]
[null,{"$error":"#NAME?"}]
[null,{"$error":"#NAME?"}]
[null,{"$error":"#NAME?"}]
[null,{"$error":"#NAME?"}]
[null,{"$error":"#NAME?"}]
[null,{"$error":"#NAME?"}]
[null,{"$error":"#NAME?"}]
[null,{"$error":"#NAME?"}]
[null,{"$error":"#NAME?"}]
[null,{"$error":"#NAME?"}]
[null,{"$error":"#NAME?"}]

{"sheet":"Алмакаев В.И.","index":1,"n_rows":29,"n_cols":12,"rows_kept":29,"cut":false,"hidden":false,"merged":[]}
["Алмакаев В.И.","Материал","Дата начала эксплуат.","Дата окончания эксплуат.","Списать/ продлить","Продл./ месяц","% износа","Обозначение СИЗ","Кол-во","Срок носки"]
["Сапоги м.ПВХ Ресурс 03Г-371 43","LOC100646542","2019-05-27",{"$f":"IFERROR(EDATE(C2,$J2),\"-\")","v":"2020-05-27"},"продлить",12,{"$f":"IFERROR(--IF(E2=\"списать\",75,IF($F2=\"\",\"\",LOOKUP(F2,{0;12},{50;30}))),\"-\")","v":30},null,1,12,null,"списать"]
["Бейсболка М-279(2) убор головной","LOC100648237","2019-05-27","2020-05-27","списать","-",{"$f":"IFERROR(--IF(E3=\"списать\",75,IF($F3=\"\",\"\",LOOKUP(F3,{0;12},{50;30}))),\"-\")","v":75},null,1,12,null,"продлить"]
["Белье м.М-272а 48-50/4","LOC100415205","2019-07-31","2020-07-31","продлить",12,{"$f":"IFERROR(--IF(E4=\"списать\",75,IF($F4=\"\",\"\",LOOKUP(F4,{0;12},{50;30}))),\"-\")","v":30},null,1,12,null,"-"]
["Подшлемник М-271ПШ трикотажный",null,"2019-08-19","2020-08-19","списать","-",{"$f":"IFERROR(--IF(E5=\"списать\",75,IF($F5=\"\",\"\",LOOKUP(F5,{0;12},{50;30}))),\"-\")","v":75},null,1,12]
["Перчатки Ansell Wint*MonkeyGr*23-193р.11",null,"2019-09-30","2020-09-30","списать","-",{"$f":"IFERROR(--IF(E6=\"списать\",75,IF($F6=\"\",\"\",LOOKUP(F6,{0;12},{50;30}))),\"-\")","v":75},null,1,12]
["Сапоги мод.Союз СУ-1 44","LOC100806271","2019-10-31","2020-10-31","-","-",{"$f":"IFERROR(--IF(E7=\"списать\",75,IF($F7=\"\",\"\",LOOKUP(F7,{0;12},{50;30}))),\"-\")","v":"-"},null,1,12]
["Костюм м.Полюс 4 FR-Бм/8 зимн.48-50/4","LOC100787722","2019-11-11","2020-11-11","списать","-",{"$f":"IFERROR(--IF(E8=\"списать\",75,IF($F8=\"\",\"\",LOOKUP(F8,{0;12},{50;30}))),\"-\")","v":75},null,1,12]
["Шапка-ушанка М-37Д убор голов.зим.62","LOC100799381","2019-11-30","2020-11-30","-","-",{"$f":"IFERROR(--IF(E9=\"списать\",75,IF($F9=\"\",\"\",LOOKUP(F9,{0;12},{50;30}))),\"-\")","v":"-"},null,1,12]
["Белье м.М02-17/3 48-50/4","LOC100816739","2019-12-31","2020-12-31","продлить",5,{"$f":"IFERROR(--IF(E10=\"списать\",75,IF($F10=\"\",\"\",LOOKUP(F10,{0;12},{50;30}))),\"-\")","v":50},null,1,12]
["Костюм м.Оптима FR-Бм/2*летн.48-50/4","LOC100779123","2019-12-31","2020-12-31","продлить",5,{"$f":"IFERROR(--IF(E11=\"списать\",75,IF($F11=\"\",\"\",LOOKUP(F11,{0;12},{50;30}))),\"-\")","v":50},null,1,12]
["Перчатки Arcticus 4440 нитрил.покр.р.10","LOC100774327","2019-12-31","2020-12-31","-","-",{"$f":"IFERROR(--IF(E12=\"списать\",75,IF($F12=\"\",\"\",LOOKUP(F12,{0;12},{50;30}))),\"-\")","v":"-"},null,1,12]
["Сапоги м.кож.Союз2 СЛМ-003К 43","LOC100780769","2019-12-31","2020-12-31","продлить",5,{"$f":"IFERROR(--IF(E13=\"списать\",75,IF($F13=\"\",\"\",LOOKUP(F13,{0;12},{50;30}))),\"-\")","v":50},null,1,12]
["Костюм о/гнуса М-216 48-50/4","LOC100845566","2020-04-30","2021-04-30","-","-",{"$f":"IFERROR(--IF(E14=\"списать\",75,IF($F14=\"\",\"\",LOOKUP(F14,{0;12},{50;30}))),\"-\")","v":"-"},null,1,12]
["Сапоги м.ПВХ Ресурс 03Г-371 43","LOC100646542","2020-05-27","2021-05-27","-","-",{"$f":"IFERROR(--IF(E15=\"списать\",75,IF($F15=\"\",\"\",LOOKUP(F15,{0;12},{50;30}))),\"-\")","v":"-"},null,1,12]
["Бейсболка М-279(2) убор головной","LOC100648237","2020-05-31","2021-05-31","-","-",{"$f":"IFERROR(--IF(E16=\"списать\",75,IF($F16=\"\",\"\",LOOKUP(F16,{0;12},{50;30}))),\"-\")","v":"-"},null,1,12]
["Белье м.М-272а 48-50/4","LOC100415205","2020-07-31","2021-07-31","-","-",{"$f":"IFERROR(--IF(E17=\"списать\",75,IF($F17=\"\",\"\",LOOKUP(F17,{0;12},{50;30}))),\"-\")","v":"-"},null,1,12]
["Костюм летний мод.КСМ 238ЛО/3 48-50/4","LOC100646348","2020-07-31","2021-07-31","-","-",{"$f":"IFERROR(--IF(E18=\"списать\",75,IF($F18=\"\",\"\",LOOKUP(F18,{0;12},{50;30}))),\"-\")","v":"-"},null,1,12]
["Подшлемник М-271ПШ трикотажный","LOC100435189","2020-08-31","2021-08-31","-","-",{"$f":"IFERROR(--IF(E19=\"списать\",75,IF($F19=\"\",\"\",LOOKUP(F19,{0;12},{50;30}))),\"-\")","v":"-"},null,1,12]
["Перчатки Ansell Wint*MonkeyGr*23-193р.11","LOC100648540","2020-09-30","2021-09-30","-","-",{"$f":"IFERROR(--IF(E20=\"списать\",75,IF($F20=\"\",\"\",LOOKUP(F20,{0;12},{50;30}))),\"-\")","v":"-"},null,1,12]
["Белье м.М02-17/3 48-50/4","LOC100816739","2020-12-31","2021-12-31","-","-",{"$f":"IFERROR(--IF(E21=\"списать\",75,IF($F21=\"\",\"\",LOOKUP(F21,{0;12},{50;30}))),\"-\")","v":"-"},null,1,12]
["Костюм м.Оптима FR-Бм/2*летн.48-50/4","LOC100779123","2020-12-31","2021-12-31","-","-",{"$f":"IFERROR(--IF(E22=\"списать\",75,IF($F22=\"\",\"\",LOOKUP(F22,{0;12},{50;30}))),\"-\")","v":"-"},null,1,12]
["Сапоги м.кож.Союз2 СЛМ-003К 43","LOC100780769","2020-12-31","2021-12-31","-","-",{"$f":"IFERROR(--IF(E23=\"списать\",75,IF($F23=\"\",\"\",LOOKUP(F23,{0;12},{50;30}))),\"-\")","v":"-"},null,1,12]
[null,null,null,"-","-","-",{"$f":"IFERROR(--IF(E24=\"списать\",75,IF($F24=\"\",\"\",LOOKUP(F24,{0;12},{50;30}))),\"-\")","v":"-"},null,1,"-"]
[null,null,null,"-","-","-",{"$f":"IFERROR(--IF(E25=\"списать\",75,IF($F25=\"\",\"\",LOOKUP(F25,{0;12},{50;30}))),\"-\")","v":"-"},null,1,"-"]
[null,null,null,"-","-","-",{"$f":"IFERROR(--IF(E26=\"списать\",75,IF($F26=\"\",\"\",LOOKUP(F26,{0;12},{50;30}))),\"-\")","v":"-"},null,1,"-"]
[null,null,null,"-","-","-",{"$f":"IFERROR(--IF(E27=\"списать\",75,IF($F27=\"\",\"\",LOOKUP(F27,{0;12},{50;30}))),\"-\")","v":"-"},null,1,"-"]
[null,null,null,"-","-","-",{"$f":"IFERROR(--IF(E28=\"списать\",75,IF($F28=\"\",\"\",LOOKUP(F28,{0;12},{50;30}))),\"-\")","v":"-"},null,1,"-"]
[null,null,null,"-","-","-",{"$f":"IFERROR(--IF(E29=\"списать\",75,IF($F29=\"\",\"\",LOOKUP(F29,{0;12},{50;30}))),\"-\")","v":"-"},null,1,"-"]

{"sheet":"Нормы","index":2,"n_rows":279,"n_cols":3,"rows_kept":279,"cut":false,"hidden":false,"merged":[[209,1,209,2],[231,1,231,2],[255,1,255,2],[278,1,278,2],[124,1,124,2],[146,1,146,2],[168,1,168,2],[175,1,175,2],[182,1,182,2],[206,1,206,2],[121,1,121,2],[22,1,22,2],[47,1,47,2],[70,1,70,2],[77,1,77,2],[99,1,99,2]]}
["Белье нательное хлопчатобумажное","кмп",2]
["Белье нательное шерстяное в III, IV и особом поясах","кмп",1]
["Ботинки или сапоги кожаные","пар",1]
["Вкладыши противошумные","пар","До износа"]
["Головной убор летний","шт",1]
["Каска защитная","шт","дежурные"]
["Костюм антистатический с масловодоотталкивающей пропиткой","кмп","1 на 2 года"]
["Костюм для защиты от вредных биологических факторов","кмп","1 на 3 года"]
["Костюм для защиты от гнуса","кмп",1]
["Костюм для защиты от пониженных температур с пристегивающейся утепляющей прокладкой из антистатических тканей с масловодоотталкивающей пропиткой и с утепленным бельем в IV и особом поясах","кмп",1]
["Накомарник","шт",1]
["Очки защитные","шт","дежурные"]
["Перчатки из полимерных материалов морозостойкие","пар",2]
["Перчатки с защитным покрытием","пар","дежурные"]
["Перчатки трикотажные хлопчатобумажные","пар",12]
["Плащ непромокаемый","шт","дежурные"]
["Подшлемник на меховой подкладке в IV и особом поясах","шт","1 на 2 года"]
["Подшлемник трикотажный в III, IV и особом поясах","шт",1]
["Рукавицы меховые в IV и особом поясах","пар",1]
["Сапоги кожаные меховые в III, IV и особом поясах","пар","1 на 3 года"]
["Сапоги резиновые","пар",1]
["Шапка-ушанка","шт","1 на 2 года"]
["итог:","Алмакаев В.И."]
["Белье нательное хлопчатобумажное","кмп",2]
["Белье нательное шерстяное в III, IV и особом поясах","кмп",1]
["Ботинки или сапоги кожаные","пар",1]
["Вкладыши противошумные","пар","До износа"]
["Головной убор летний","шт",1]
["Каска защитная","шт","дежурные"]
["Костюм антистатический с масловодоотталкивающей пропиткой","кмп","1 на 2 года"]
["Костюм для защиты от вредных биологических факторов","кмп","1 на 3 года"]
["Костюм для защиты от гнуса","кмп",1]
["Костюм для защиты от пониженных температур с пристегивающейся утепляющей прокладкой из антистатических тканей с масловодоотталкивающей пропиткой и с утепленным бельем в IV и особом поясах","кмп",1]
["Накомарник","шт",1]
["Очки защитные","шт","дежурные"]
["Перчатки из полимерных материалов морозостойкие","пар",2]
["Перчатки с защитным покрытием","пар","дежурные"]
["Перчатки трикотажные хлопчатобумажные","пар",12]
["Плащ непромокаемый","шт","дежурные"]
["Подшлемник на меховой подкладке в IV и особом поясах","шт","1 на 2 года"]
["Подшлемник трикотажный в III, IV и особом поясах","шт",1]
["Рукавицы меховые в IV и особом поясах","пар",1]
["Сапоги кожаные меховые в III, IV и особом поясах","пар","1 на 3 года"]
["Сапоги резиновые","пар",1]
["Страховочная привязь","шт","1 до износа"]
["Строп страховочный","шт","1 до износа"]
["Шапка-ушанка","шт","1 на 2 года"]
["итог:","Глазовский Д.А."]
["Белье нательное хлопчатобумажное","кмп",2]
["Белье нательное шерстяное в III, IV и особом поясах","кмп",1]
["Ботинки или сапоги кожаные","пар",1]
["Боты диэлектрические","пар","дежурные"]
["Каска защитная","шт","дежурные"]
["Костюм антистатический с масловодоотталкивающей пропиткой","кмп","1 на 2 года"]
["Костюм для защиты от вредных биологических факторов","кмп","1 на 3 года"]
["Костюм для защиты от гнуса","кмп",1]
["Костюм для защиты от пониженных температур с пристегивающейся утепляющей прокладкой из антистатических тканей с масловодоотталкивающей пропиткой и с утепленным бельем в IV и особом поясах","кмп","1 на 4 года"]
["Очки защитные","шт","дежурные"]
["Перчатки диэлектрические","пар","дежурные"]
["Перчатки из полимерных материалов морозостойкие","пар",2]
["Перчатки с защитным покрытием","пар","До износа"]
["Перчатки трикотажные хлопчатобумажные","пар",12]
["Плащ непромокаемый","шт","дежурные"]
["Подшлемник на меховой подкладке в IV и особом поясах","шт","1 на 2 года"]
["Подшлемник трикотажный в III, IV и особом поясах","шт",1]
["Рукавицы меховые в IV и особом поясах","пар",1]
["Сапоги кожаные меховые в III, IV и особом поясах","пар","1 на 3 года"]
["Сапоги резиновые","пар",1]
["Халат хлопчатобумажный","шт",1]
["Шапка-ушанка","шт","1 на 2 года"]
["итог:","Гулеватый С.В."]
["Боты диэлектрические","пар","дежурные"]
["Костюм для защиты от пониженных температур с пристегивающейся утепляющей прокладкой из антистатических тканей с масловодоотталкивающей пропиткой и с утепленным бельем в IV и особом поясах","кмп","1 на 4 года"]
["Очки защитные","шт","дежурные"]
["Перчатки диэлектрические","пар","дежурные"]
["Сапоги кожаные меховые в III, IV и особом поясах","пар","1 на 3 года"]
["Халат хлопчатобумажный","шт",1]
["итог:","Кинжибалов Е.Ю."]
["Белье нательное хлопчатобумажное","кмп",1]
["Белье нательное шерстяное в III, IV и особом поясах","кмп",1]
["Боты диэлектрические","пар","дежурные"]
["Головной убор летний","шт",1]
["Каска защитная","шт","дежурные"]
["Костюм антистатический с масловодоотталкивающей пропиткой","кмп",1]
["Костюм для защиты от вредных биологических факторов","кмп","1 на 3 года"]
["Костюм для защиты от гнуса","кмп",1]
["Костюм для защиты от пониженных температур с пристегивающейся утепляющей прокладкой из антистатических тканей с масловодоотталкивающей пропиткой и с утепленным бельем в IV и особом поясах","кмп",1]
["Накомарник","шт",1]
["Очки защитные","шт","дежурные"]
["Перчатки диэлектрические","пар","дежурные"]
["Перчатки из полимерных материалов морозостойкие","пар",2]
["Перчатки с защитным покрытием","шт","дежурные"]
["Подшлемник на меховой подкладке в IV и особом поясах","шт","1 на 2 года"]
["Подшлемник трикотажный в III, IV и особом поясах","шт",1]
["Рукавицы меховые в IV и особом поясах","пар",1]
["Сапоги кожаные","пар",1]
["Сапоги кожаные меховые в III, IV и особом поясах","пар","1 на 3 года"]
["Сапоги резиновые","пар",1]
["Шапка-ушанка","шт","1 на 2 года"]
["итог:","Кристовир А.Б."]
["Белье нательное хлопчатобумажное","кмп",1]
["Белье нательное шерстяное в III, IV и особом поясах","кмп",1]
["Боты диэлектрические","пар","дежурные"]
["Головной убор летний","шт",1]
["Каска защитная","шт","дежурные"]
["Костюм антистатический с масловодоотталкивающей пропиткой","кмп",1]
["Костюм для защиты от вредных биологических факторов","кмп","1 на 3 года"]
["Костюм для защиты от гнуса","кмп",1]
["Костюм для защиты от пониженных температур с пристегивающейся утепляющей прокладкой из антистатических тканей с масловодоотталкивающей пропиткой и с утепленным бельем в IV и особом поясах","кмп",1]
["Накомарник","шт",1]
["Очки защитные","шт","дежурные"]
["Перчатки диэлектрические","пар","дежурные"]
["Перчатки из полимерных материалов морозостойкие","пар",2]
["Перчатки с защитным покрытием","шт","дежурные"]
["Подшлемник на меховой подкладке в IV и особом поясах","шт","1 на 2 года"]
["Подшлемник трикотажный в III, IV и особом поясах","шт",1]
["Рукавицы меховые в IV и особом поясах","пар",1]
["Сапоги кожаные","пар",1]
["Сапоги кожаные меховые в III, IV и особом поясах","пар","1 на 3 года"]
["Сапоги резиновые","пар",1]
["Шапка-ушанка","шт","1 на 2 года"]
["итог:","Кристовир А.А."]
["Сандали кожаные","пар",1]
["Халат хлопчатобумажный","шт",1]
["итог:","Кристовир Ал.А."]
["Белье нательное хлопчатобумажное","кмп",1]
["Белье нательное шерстяное в III, IV и особом поясах","кмп",1]
["Боты диэлектрические","пар","дежурные"]
["Головной убор летний","шт",1]
["Каска защитная","шт","дежурные"]
["Костюм антистатический с масловодоотталкивающей пропиткой","кмп",1]
["Костюм для защиты от вредных биологических факторов","кмп","1 на 3 года"]
["Костюм для защиты от гнуса","кмп",1]
["Костюм для защиты от пониженных температур с пристегивающейся утепляющей прокладкой из антистатических тканей с масловодоотталкивающей пропиткой и с утепленным бельем в IV и особом поясах","кмп",1]
["Накомарник","шт",1]
["Очки защитные","шт","дежурные"]
["Перчатки диэлектрические","пар","дежурные"]
["Перчатки из полимерных материалов морозостойкие","пар",2]
["Перчатки с защитным покрытием","шт","дежурные"]
["Подшлемник на меховой подкладке в IV и особом поясах","шт","1 на 2 года"]
["Подшлемник трикотажный в III, IV и особом поясах","шт",1]
["Рукавицы меховые в IV и особом поясах","пар",1]
["Сапоги кожаные","пар",1]
["Сапоги кожаные меховые в III, IV и особом поясах","пар","1 на 3 года"]
["Сапоги резиновые","пар",1]
["Шапка-ушанка","шт","1 на 2 года"]
["итог:","Кульчицкая Л.С."]
["Белье нательное хлопчатобумажное","кмп",1]
["Белье нательное шерстяное в III, IV и особом поясах","кмп",1]
["Боты диэлектрические","пар","дежурные"]
["Головной убор летний","шт",1]
["Каска защитная","шт","дежурные"]
["Костюм антистатический с масловодоотталкивающей пропиткой","кмп",1]
["Костюм для защиты от вредных биологических факторов","кмп","1 на 3 года"]
["Костюм для защиты от гнуса","кмп",1]
["Костюм для защиты от пониженных температур с пристегивающейся утепляющей прокладкой из антистатических тканей с масловодоотталкивающей пропиткой и с утепленным бельем в IV и особом поясах","кмп",1]
["Накомарник","шт",1]
["Очки защитные","шт","дежурные"]
["Перчатки диэлектрические","пар","дежурные"]
["Перчатки из полимерных материалов морозостойкие","пар",2]
["Перчатки с защитным покрытием","шт","дежурные"]
["Подшлемник на меховой подкладке в IV и особом поясах","шт","1 на 2 года"]
["Подшлемник трикотажный в III, IV и особом поясах","шт",1]
["Рукавицы меховые в IV и особом поясах","пар",1]
["Сапоги кожаные","пар",1]
["Сапоги кожаные меховые в III, IV и особом поясах","пар","1 на 3 года"]
["Сапоги резиновые","пар",1]
["Шапка-ушанка","шт","1 на 2 года"]
["итог:","Курмандаев Э.Р."]
["Боты диэлектрические","пар","дежурные"]
["Костюм для защиты от пониженных температур с пристегивающейся утепляющей прокладкой из антистатических тканей с масловодоотталкивающей пропиткой и с утепленным бельем в IV и особом поясах","кмп","1 на 4 года"]
["Очки защитные","шт","дежурные"]
["Перчатки диэлектрические","пар","дежурные"]
["Сапоги кожаные меховые в III, IV и особом поясах","пар","1 на 3 года"]
["Халат хлопчатобумажный","шт",1]
["итог:","Кутельникова Е.В."]
["Боты диэлектрические","пар","дежурные"]
["Костюм для защиты от пониженных температур с пристегивающейся утепляющей прокладкой из антистатических тканей с масловодоотталкивающей пропиткой и с утепленным бельем в IV и особом поясах","кмп","1 на 4 года"]
["Очки защитные","шт","дежурные"]
["Перчатки диэлектрические","пар","дежурные"]
["Сапоги кожаные меховые в III, IV и особом поясах","пар","1 на 3 года"]
["Халат хлопчатобумажный","шт",1]
["итог:","Меняйлова С.В."]
["Белье нательное хлопчатобумажное","кмп",2]
["Белье нательное шерстяное в III, IV и особом поясах","кмп",1]
["Ботинки или сапоги кожаные","пар",1]
["Боты диэлектрические","пар","дежурные"]
["Каска защитная","шт","дежурные"]
["Костюм антистатический с масловодоотталкивающей пропиткой","кмп","1 на 2 года"]
["Костюм для защиты от вредных биологических факторов","кмп","1 на 3 года"]
["Костюм для защиты от гнуса","кмп",1]
["Костюм для защиты от пониженных температур с пристегивающейся утепляющей прокладкой из антистатических тканей с масловодоотталкивающей пропиткой и с утепленным бельем в IV и особом поясах","кмп","1 на 4 года"]
["Накомарник","шт",1]
["Очки защитные","шт","дежурные"]
["Перчатки диэлектрические","пар","дежурные"]
["Перчатки из полимерных материалов морозостойкие","пар",2]
["Перчатки с защитным покрытием","пар","До износа"]
["Перчатки трикотажные хлопчатобумажные","пар",12]
["Плащ непромокаемый","шт","дежурные"]
["Подшлемник на меховой подкладке в IV и особом поясах","шт","1 на 2 года"]
["Подшлемник трикотажный в III, IV и особом поясах","шт",1]
["Рукавицы меховые в IV и особом поясах","пар",1]
["Сапоги кожаные меховые в III, IV и особом поясах","пар","1 на 3 года"]
["Сапоги резиновые","пар",1]
["Халат хлопчатобумажный","шт",1]
["Шапка-ушанка","шт","1 на 2 года"]
["итог:","Павленко Д.А."]
["Сандали кожаные","пар",1]
["Халат хлопчатобумажный","шт",1]
["итог:","Писковская Д.С."]
["Белье нательное хлопчатобумажное","кмп",1]
["Белье нательное шерстяное в III, IV и особом поясах","кмп",1]
["Боты диэлектрические","пар","дежурные"]
["Головной убор летний","шт",1]
["Каска защитная","шт","дежурные"]
["Костюм антистатический с масловодоотталкивающей пропиткой","кмп",1]
["Костюм для защиты от вредных биологических факторов","кмп","1 на 3 года"]
["Костюм для защиты от гнуса","кмп",1]
["Костюм для защиты от пониженных температур с пристегивающейся утепляющей прокладкой из антистатических тканей с масловодоотталкивающей пропиткой и с утепленным бельем в IV и особом поясах","кмп",1]
["Накомарник","шт",1]
["Очки защитные","шт","дежурные"]
["Перчатки диэлектрические","пар","дежурные"]
["Перчатки из полимерных материалов морозостойкие","пар",2]
["Перчатки с защитным покрытием","шт","дежурные"]
["Подшлемник на меховой подкладке в IV и особом поясах","шт","1 на 2 года"]
["Подшлемник трикотажный в III, IV и особом поясах","шт",1]
["Рукавицы меховые в IV и особом поясах","пар",1]
["Сапоги кожаные","пар",1]
["Сапоги кожаные меховые в III, IV и особом поясах","пар","1 на 3 года"]
["Сапоги резиновые","пар",1]
["Шапка-ушанка","шт","1 на 2 года"]
["итог:","Туйцин И.В."]
["Белье нательное хлопчатобумажное","кмп",2]
["Белье нательное шерстяное в III, IV и особом поясах","кмп",2]
["Ботинки или сапоги кожаные","пар",1]
["Боты диэлектрические","пар","дежурные"]
["Каска защитная","шт","дежурные"]
["Костюм антистатический с масловодоотталкивающей пропиткой","кмп","1 на 2 года"]
["Костюм для защиты от вредных биологических факторов","кмп","1 на 3 года"]
["Костюм для защиты от гнуса","кмп",1]
["Костюм для защиты от пониженных температур с пристегивающейся утепляющей прокладкой из антистатических тканей с масловодоотталкивающей пропиткой и с утепленным бельем в IV и особом поясах","кмп","1 на 4 года"]
["Накомарник","шт",1]
["Очки защитные","шт","дежурные"]
["Перчатки диэлектрические","пар","дежурные"]
["Перчатки из полимерных материалов морозостойкие","пар",2]
["Перчатки с защитным покрытием","пар","До износа"]
["Перчатки трикотажные хлопчатобумажные","пар",12]
["Плащ непромокаемый","шт","дежурные"]
["Подшлемник на меховой подкладке в IV и особом поясах","шт","1 на 2 года"]
["Подшлемник трикотажный в III, IV и особом поясах","шт",1]
["Рукавицы меховые в IV и особом поясах","пар",1]
["Сапоги кожаные меховые в III, IV и особом поясах","пар","1 на 3 года"]
["Сапоги резиновые","пар",1]
["Халат хлопчатобумажный","шт",1]
["Шапка-ушанка","шт","1 на 2 года"]
["итог:","Хмельницкий Б.Н."]
["Белье нательное хлопчатобумажное","кмп",2]
["Белье нательное шерстяное в III, IV и особом поясах","кмп",1]
["Ботинки или сапоги кожаные","пар",1]
["Вкладыши противошумные","пар","До износа"]
["Головной убор летний","шт",1]
["Каска защитная","шт","дежурные"]
["Костюм антистатический с масловодоотталкивающей пропиткой","кмп","1 на 2 года"]
["Костюм для защиты от вредных биологических факторов","кмп","1 на 3 года"]
["Костюм для защиты от гнуса","кмп",1]
["Костюм для защиты от пониженных температур с пристегивающейся утепляющей прокладкой из антистатических тканей с масловодоотталкивающей пропиткой и с утепленным бельем в IV и особом поясах","кмп",1]
["Накомарник","шт",1]
["Очки защитные","шт","дежурные"]
["Перчатки из полимерных материалов морозостойкие","пар",2]
["Перчатки с защитным покрытием","пар","дежурные"]
["Перчатки трикотажные хлопчатобумажные","пар",12]
["Плащ непромокаемый","шт","дежурные"]
["Подшлемник на меховой подкладке в IV и особом поясах","шт","1 на 2 года"]
["Подшлемник трикотажный в III, IV и особом поясах","шт",1]
["Рукавицы меховые в IV и особом поясах","пар",1]
["Сапоги кожаные меховые в III, IV и особом поясах","пар","1 на 3 года"]
["Сапоги резиновые","пар",1]
["Шапка-ушанка","шт","1 на 2 года"]
["итог:","Шаврин А.А."]